bitfinex-derivatives/quotes_BNBF0:USTF0_20250609
["timestamp","ask_amount","ask_price","bid_price","bid_amount"]
[1749511736086,1.43738231,665.07,664.43,1.1270422]
[1749511736483,0.45813535,665.07,664.43,1.1270422]
[1749511736684,0.45813793,665.07,664.43,1.1270422]
[1749511737180,0.45815322,665.07,664.43,1.1270422]
[1749511737384,1.75715267,665.08,664.43,1.1270422]
[1749511737584,1.299,665.08,664.43,1.1270422]
[1749511737783,2.73687461,665.08,664.43,1.1270422]
[1749511737988,0.45815182,665.07,664.43,1.1270422]
[1749511738186,1.43787308,665.07,664.43,1.1270422]
[1749511738680,2.42350226,665.08,664.42,1.1270422]
[1749511738882,1.43791954,665.07,664.42,1.1270422]
[1749511739086,0.97974572,665.07,664.43,1.1270422]
[1749511739287,1.43791938,665.07,664.43,1.1270422]
[1749511739484,2.42350226,665.08,664.42,1.1270422]
[1749511739683,2.56237005,665.07,664.42,1.1270422]
[1749511739987,0.4581216,665.06,664.42,1.1270422]
[1749511740187,1.12450226,665.01,664.49,1.1270422]
[1749511741687,1.12450226,665.0,664.5,1.1270422]
[1749511741888,1.58261647,665.0,664.5,1.1270422]
[1749511742087,1.12450226,665.0,664.5,1.1270422]
[1749511742488,1.12450226,665.01,664.5,1.1270422]
[1749511744088,1.12450226,665.0,664.5,1.1270422]
[1749511744792,1.12450226,665.0,664.51,1.1270422]
[1749511745294,1.12450226,665.01,664.51,1.1270422]
[1749511745888,1.12450226,665.0,664.51,1.1270422]
[1749511746188,1.12450226,664.95,664.56,1.1270422]
[1749511746391,1.12450226,664.97,664.54,1.1270422]
[1749511747589,1.12450226,665.01,664.5,1.1270422]
[1749511748393,1.12450226,665.01,664.51,1.1270422]
[1749511748595,1.12450226,665.0,664.5,1.1270422]
[1749511749395,1.12450226,665.0,664.35,1.49881752]
[1749511749396,1.12450226,665.0,664.51,1.1270422]
[1749511752192,1.43669615,665.01,664.2,2.24822628]
[1749511752397,1.43678419,665.07,664.2,2.24822628]
[1749511752697,0.45872353,665.06,664.2,2.24822628]
[1749511752897,0.45872263,665.06,664.2,2.24822628]
[1749511753093,0.45872201,665.06,664.08,0.2617801]
[1749511753296,0.45872201,665.07,664.08,0.2617801]
[1749511753498,0.45872201,665.06,664.08,0.2617801]
[1749511753797,1.12367071,665.01,664.5,1.12748681]
[1749511754195,1.12367071,665.01,664.35,1.50331574]
[1749511754497,0.45872384,665.06,664.35,1.50331574]
[1749511754898,0.45872384,665.07,664.35,1.50331574]
[1749511755101,0.45872384,665.06,664.19,2.25497362]
[1749511755395,0.45872384,665.07,664.19,2.25497362]
[1749511755700,0.45872384,665.06,664.19,2.25497362]
[1749511755994,0.97698307,665.07,664.19,2.25497362]
[1749511756197,0.45872723,665.06,664.19,2.25497362]
[1749511756396,1.43570435,665.11,664.19,2.25497362]
[1749511756601,0.45872485,665.1,664.19,2.25497362]
[1749511756799,1.43570448,665.09,664.19,2.25497362]
[1749511756999,0.97618735,665.12,664.19,2.25497362]
[1749511757199,1.43570818,665.11,664.19,2.25497362]
[1749511757395,0.45872449,665.1,664.19,2.25497362]
[1749511757694,0.97683639,665.11,664.19,2.25497362]
[1749511757898,0.97683639,665.1,664.19,2.25497362]
[1749511758096,0.45872799,665.09,664.19,2.25497362]
[1749511758295,0.45872804,665.08,664.19,2.25497362]
[1749511758601,0.4587298,665.07,664.19,2.25497362]
[1749511758803,0.4587298,665.06,664.19,2.25497362]
[1749511758997,1.43556934,665.1,664.19,2.25497362]
[1749511759199,0.45872922,665.09,664.19,2.25497362]
[1749511759399,0.97618735,665.12,664.19,2.25497362]
[1749511759598,0.9768328,665.11,664.19,2.25497362]
[1749511759796,1.088,665.11,664.19,2.25497362]
[1749511759997,1.43552364,665.1,664.19,2.25497362]
[1749511760199,0.45867968,665.09,664.19,2.25497362]
[1749511760401,0.45867968,665.08,664.19,2.25497362]
[1749511760600,0.45867968,665.07,664.19,2.25497362]
[1749511760797,0.45867968,665.06,664.19,2.25497362]
[1749511760997,0.45877948,665.09,664.19,2.25497362]
[1749511761198,0.45877891,665.08,664.19,2.25497362]
[1749511761402,0.45877847,665.07,664.19,2.25497362]
[1749511761702,0.45877853,665.06,664.19,2.25497362]
[1749511761897,0.45877853,665.09,664.19,2.25497362]
[1749511762100,0.45877853,665.08,664.19,2.25497362]
[1749511762401,0.97790377,665.1,664.19,2.25497362]
[1749511762599,0.45878079,665.09,664.19,2.25497362]
[1749511762899,0.4587808,665.08,664.19,2.25497362]
[1749511763098,0.45878022,665.07,664.19,2.25497362]
[1749511763300,0.45878022,665.06,664.19,2.25497362]
[1749511763599,0.97791296,665.1,664.19,2.25497362]
[1749511763803,0.4587825,665.09,664.19,2.25497362]
[1749511764003,0.4587825,665.08,664.19,2.25497362]
[1749511764203,0.4587825,665.07,664.19,2.25497362]
[1749511764500,0.4587825,665.06,664.19,2.25497362]
[1749511765200,0.45907225,665.06,664.19,2.25497362]
[1749511765604,1.12510831,664.93,664.58,1.12814117]
[1749511766007,1.12510831,664.93,664.57,1.12814117]
[1749511767005,1.12510831,664.93,664.58,1.12814117]
[1749511767907,1.12510831,664.93,664.57,1.12814117]
[1749511768708,1.12510831,664.93,664.58,1.12814117]
[1749511769503,1.12510831,664.93,664.57,1.12814117]
[1749511771008,1.12510831,664.93,664.58,1.12814117]
[1749511772007,1.12510831,664.92,664.59,1.12814117]
[1749511772406,1.12510831,664.94,664.57,1.12814117]
[1749511774112,1.12510831,664.94,664.58,1.12814117]
[1749511774513,1.12510831,664.93,664.57,1.12814117]
[1749511775011,2.56237025,664.99,664.54,1.12814117]
[1749511775213,0.97830594,664.98,664.54,1.12814117]
[1749511775513,0.97831628,664.98,664.54,1.12814117]
[1749511775711,1.43792201,664.98,664.54,1.12814117]
[1749511776108,0.45960573,664.98,664.54,1.12814117]
[1749511776314,1.12510831,664.99,664.54,1.12814117]
[1749511776810,1.12510831,665.0,664.54,1.12814117]
[1749511778013,0.45907225,665.06,664.57,1.12814117]
[1749511778210,1.58418056,665.06,664.56,1.12814117]
[1749511778607,1.58418056,665.06,664.39,1.50418822]
[1749511778608,0.45907225,665.06,664.55,1.12814117]
[1749511778909,0.45907225,665.06,664.56,1.12814117]
[1749511779615,0.45907225,665.06,664.55,1.12814117]
[1749511784020,0.45907225,665.06,664.56,1.12814117]
[1749511784817,0.45907225,665.06,664.57,1.12814117]
[1749511785019,1.89767081,665.06,664.57,1.12814117]
[1749511785216,1.89765707,665.06,664.57,1.12814117]
[1749511785416,1.89766,665.06,664.57,1.12814117]
[1749511785616,1.89765382,665.06,664.57,1.12814117]
[1749511785822,1.89765213,665.06,664.57,1.12814117]
[1749511786021,0.91887474,665.06,664.57,1.12814117]
[1749511786223,0.45907225,665.06,664.57,1.12814117]
[1749511787820,1.12510831,665.03,664.61,1.12814117]
[1749511788025,1.12510831,665.02,664.62,1.12814117]
[1749511790024,1.12510831,665.03,664.62,1.12814117]
[1749511790422,1.12510831,665.03,664.61,1.12814117]
[1749511791223,1.12510831,665.03,664.62,1.12814117]
[1749511791628,1.12510831,665.04,664.6,1.12814117]
[1749511793327,0.45907225,665.06,664.52,1.12814117]
[1749511794431,1.492,665.05,664.52,1.12814117]
[1749511795225,2.47168114,665.05,664.52,1.12814117]
[1749511795426,0.45974764,665.04,664.52,1.12814117]
[1749511795626,1.43942878,665.04,664.52,1.12814117]
[1749511796025,1.43932213,665.04,664.52,1.12814117]
[1749511796229,1.4393227,665.04,664.52,1.12814117]
[1749511796429,0.45974915,665.04,664.52,1.12814117]
[1749511796625,0.97954894,665.04,664.52,1.12814117]
[1749511797033,0.45973705,665.04,664.52,1.12814117]
[1749511797233,1.43928599,665.04,664.52,1.12814117]
[1749511797733,1.43928466,665.04,664.52,1.12814117]
[1749511797935,0.45973425,665.04,664.52,1.12814117]
[1749511798133,1.492,665.05,664.52,1.12814117]
[1749511798534,2.93117045,665.05,664.52,1.12814117]
[1749511798733,1.492,665.05,664.52,1.12814117]
[1749511798929,2.93117045,665.05,664.52,1.12814117]
[1749511799230,1.43917045,665.04,664.52,1.12814117]
[1749511799433,1.43917049,665.04,664.52,1.12814117]
[1749511799934,0.97955688,665.04,664.52,1.12814117]
[1749511800138,1.492,665.05,664.52,1.12814117]
[1749511800636,2.47153852,665.05,664.5,1.12814117]
[1749511800836,1.43923069,665.04,664.5,1.12814117]
[1749511801536,1.43801505,665.04,664.47,1.12814117]
[1749511801737,1.492,665.05,664.47,1.12814117]
[1749511802236,2.47036892,665.05,664.47,1.12814117]
[1749511802438,1.43801091,665.04,664.47,1.12814117]
[1749511802937,1.43808791,665.04,664.47,1.12814117]
[1749511803137,1.43808798,665.04,664.49,1.12814117]
[1749511803339,0.97822833,665.04,664.49,1.12814117]
[1749511803535,0.97822847,665.04,664.49,1.12814117]
[1749511803733,0.45965793,665.04,664.49,1.12814117]
[1749511803938,1.95165793,665.05,664.49,1.12814117]
[1749511804234,1.43786937,665.04,664.49,1.12814117]
[1749511804839,1.43786935,665.04,664.3,1.50418822]
[1749511805035,1.492,665.05,664.49,1.12662175]
[1749511805241,1.95165891,665.05,664.48,1.12662175]
[1749511805439,1.95165891,665.05,664.47,1.12662175]
[1749511805440,0.97829457,665.04,664.47,1.12662175]
[1749511805639,1.43778927,665.04,664.47,1.12662175]
[1749511805841,1.43778927,665.04,664.48,1.12662175]
[1749511806338,1.4377958,665.04,664.48,1.12662175]
[1749511806838,1.43778825,665.04,664.48,1.12662175]
[1749511807037,0.97780196,665.04,664.48,1.12662175]
[1749511807241,0.45953566,665.04,664.48,1.12662175]
[1749511807436,0.97781604,665.04,664.48,1.12662175]
[1749511807739,0.45954105,665.04,664.49,1.12662175]
[1749511807937,1.43735709,665.04,664.48,1.12662175]
[1749511808136,1.492,665.05,664.48,1.12662175]
[1749511808536,2.46978246,665.05,664.48,1.12662175]
[1749511808844,1.43815658,665.04,664.49,1.12662175]
[1749511809036,1.43816209,665.04,664.48,1.12662175]
[1749511809241,0.97863633,665.04,664.49,1.12662175]
[1749511809438,2.47063633,665.05,664.48,1.12662175]
[1749511809742,1.43821456,665.04,664.51,1.12662175]
[1749511810041,1.43821456,665.04,664.52,1.12662175]
[1749511810240,1.492,665.05,664.52,1.12662175]
[1749511810639,1.492,665.05,664.56,1.12662175]
[1749511810842,1.95170085,665.05,664.57,1.12662175]
[1749511811040,1.44028144,665.04,664.6,1.12662175]
[1749511811238,1.44028144,665.04,664.61,1.12662175]
[1749511811442,1.44028144,665.04,664.63,1.12662175]
[1749511811844,1.44028144,665.04,664.64,1.12662175]
[1749511812140,0.98058059,665.04,664.64,1.12662175]
[1749511812346,1.44150936,665.04,664.64,1.12662175]
[1749511812546,0.98178471,665.04,664.64,1.12662175]
[1749511812746,1.492,665.05,664.64,1.12662175]
[1749511812941,1.95172435,665.05,664.64,1.12662175]
[1749511813145,1.95172435,665.05,664.08,0.2617801]
[1749511813146,1.44150842,665.04,664.65,1.12662175]
[1749511813645,1.44192015,665.04,664.65,1.12662175]
[1749511813945,1.492,665.05,664.65,1.12662175]
[1749511814144,1.95213484,665.05,664.65,1.12662175]
[1749511814446,1.492,665.05,664.65,1.12662175]
[1749511814643,2.47416939,665.05,664.65,1.12662175]
[1749511814842,1.44225618,665.04,664.65,1.12662175]
[1749511815348,1.44225618,665.04,664.64,1.12662175]
[1749511815549,1.44221176,665.04,664.64,1.12662175]
[1749511815844,0.46007288,665.04,664.64,1.12662175]
[1749511816149,1.95207288,665.05,664.64,1.12662175]
[1749511816345,0.98177028,665.04,664.64,1.12662175]
[1749511816543,1.492,665.05,664.64,1.12662175]
[1749511816746,2.47377024,665.05,664.64,1.12662175]
[1749511816947,1.44184147,665.04,664.64,1.12662175]
[1749511817448,0.98177024,665.04,664.64,1.12662175]
[1749511817645,1.492,665.05,664.64,1.12662175]
[1749511817848,2.93479327,665.05,664.64,1.12662175]
[1749511818047,0.98271804,665.04,664.64,1.12662175]
[1749511818252,0.46007471,665.04,664.64,1.12662175]
[1749511818552,1.44279275,665.04,664.64,1.12662175]
[1749511818852,1.44279275,665.04,664.63,1.12662175]
[1749511819154,0.46007471,665.04,664.63,1.12662175]
[1749511819447,1.44231376,665.04,664.62,1.12662175]
[1749511819649,1.44231652,665.04,664.48,1.12662175]
[1749511819853,0.45992876,665.04,664.48,1.12662175]
[1749511820050,1.95192877,665.05,664.48,1.12662175]
[1749511820249,1.44199612,665.04,664.48,1.12662175]
[1749511820449,1.44199612,665.04,664.47,1.12662175]
[1749511820750,1.44199612,665.04,664.48,1.12593987]
[1749511820948,0.98212558,665.04,664.48,1.12593987]
[1749511821253,0.45977953,665.04,664.48,1.12593987]
[1749511821555,1.95177944,665.05,664.48,1.12593987]
[1749511821849,1.44211636,665.04,664.48,1.12593987]
[1749511822049,1.44211665,665.04,664.48,1.12593987]
[1749511822253,1.44220994,665.04,664.48,1.12593987]
[1749511822448,0.98222345,665.04,664.47,1.12593987]
[1749511822749,0.46002767,665.04,664.48,1.12593987]
[1749511822949,1.44192946,665.04,664.48,1.12593987]
[1749511823153,1.44194017,665.04,664.48,1.12593987]
[1749511823350,0.46003117,665.04,664.48,1.12593987]
[1749511823549,1.95203149,665.05,664.48,1.12593987]
[1749511823749,0.98190668,665.04,664.48,1.12593987]
[1749511824049,1.44193817,665.04,664.48,1.12593987]
[1749511824252,1.44193817,665.04,664.47,1.12593987]
[1749511824449,0.46005172,665.04,664.47,1.12593987]
[1749511824749,1.95189649,665.05,664.47,1.12593987]
[1749511825053,1.44084138,665.04,664.47,1.12593987]
[1749511825252,1.44084046,665.04,664.48,1.12593987]
[1749511825449,1.44084141,665.04,664.48,1.12593987]
[1749511826251,1.440869,665.04,664.48,1.12593987]
[1749511826454,0.45992357,665.04,664.48,1.12593987]
[1749511826655,0.9811086,665.04,664.48,1.12593987]
[1749511826854,1.44103216,665.04,664.48,1.12593987]
[1749511827053,1.492,665.05,664.48,1.12593987]
[1749511827453,1.95196961,665.05,664.48,1.12593987]
[1749511827653,1.492,665.05,664.48,1.12593987]
[1749511827853,1.95200802,665.05,664.5,1.12593987]
[1749511828156,0.46001458,665.04,664.5,1.12593987]
[1749511828354,1.44091582,665.04,664.5,1.12593987]
[1749511828552,0.46001766,665.04,664.5,1.12593987]
[1749511828754,1.492,665.05,664.5,1.12593987]
[1749511828755,1.95201708,665.05,664.5,1.12593987]
[1749511828953,0.98090336,665.04,664.5,1.12593987]
[1749511829151,0.46005544,665.04,664.5,1.12593987]
[1749511829355,1.4410406,665.04,664.52,1.12593987]
[1749511829553,1.4410406,665.04,664.54,1.12593987]
[1749511829757,1.4410641,665.04,664.54,1.12593987]
[1749511829954,0.46007951,665.04,664.54,1.12593987]
[1749511830154,0.98103659,665.04,664.54,1.12593987]
[1749511830454,0.46007951,665.04,664.54,1.12593987]
[1749511830657,1.95207914,665.05,664.54,1.12593987]
[1749511830858,2.10408461,665.04,664.54,1.12593987]
[1749511831157,0.46007914,665.03,664.54,1.12593987]
[1749511831758,1.12304882,665.04,664.54,1.12593987]
[1749511832054,1.12304882,665.03,664.56,1.12593987]
[1749511832259,1.12304882,665.03,664.53,1.12593987]
[1749511832454,1.12304882,664.96,664.47,1.12593987]
[1749511832758,1.12304882,664.97,664.48,1.12593987]
[1749511832958,1.12304882,664.97,664.36,1.50418822]
[1749511832959,1.12304882,665.01,664.43,1.12593987]
[1749511833160,1.12304882,665.03,664.46,1.12593987]
[1749511833859,1.12304882,665.03,664.3,1.50418822]
[1749511833860,1.12304882,664.96,664.52,1.12593987]
[1749511834160,1.12304882,664.97,664.51,1.12593987]
[1749511834758,1.12304882,665.0,664.5,1.12593987]
[1749511834963,1.222,664.96,664.49,1.12593987]
[1749511835261,1.222,664.96,664.36,1.50418822]
[1749511835262,1.222,664.96,664.5,1.12593987]
[1749511836561,2.66254964,664.96,664.5,1.12593987]
[1749511836761,1.44054964,664.95,664.5,1.12593987]
[1749511836961,1.44054635,664.95,664.5,1.12593987]
[1749511837156,1.44054903,664.95,664.49,1.12593987]
[1749511837358,1.222,664.96,664.49,1.12593987]
[1749511837664,1.222,664.96,664.5,1.12593987]
[1749511838261,1.222,664.96,664.49,1.12593987]
[1749511839158,2.66277019,664.96,664.49,1.12593987]
[1749511839459,1.44077019,664.95,664.49,1.12593987]
[1749511839761,0.45995598,664.95,664.49,1.12593987]
[1749511840057,1.222,664.96,664.5,1.12593987]
[1749511840262,1.222,664.96,664.54,1.12593987]
[1749511840962,1.222,664.96,664.55,1.12593987]
[1749511841261,1.222,664.96,664.54,1.12593987]
[1749511841461,1.222,664.96,664.55,1.12593987]
[1749511841662,1.222,664.96,664.54,1.12593987]
[1749511842057,1.68187286,664.96,664.55,1.12593987]
[1749511842361,1.222,664.96,664.55,1.12593987]
[1749511842662,1.222,664.96,664.54,1.12593987]
[1749511844860,1.222,664.96,664.53,1.12593987]
[1749511845063,2.66311641,664.96,664.53,1.12593987]
[1749511845264,1.44111641,664.95,664.54,1.12593987]
[1749511845561,0.98094838,664.95,664.53,1.12593987]
[1749511845759,0.45998019,664.95,664.53,1.12593987]
[1749511846063,1.222,664.96,664.53,1.12593987]
[1749511848762,1.222,664.96,664.54,1.12593987]
[1749511851265,1.222,664.96,664.55,1.12593987]
[1749511851569,1.222,664.96,664.54,1.12593987]
[1749511851970,1.68177205,664.96,664.54,1.12593987]
[1749511852266,1.222,664.96,664.54,1.12593987]
[1749511852464,1.222,664.96,664.55,1.12593987]
[1749511854068,2.66248218,664.96,664.55,1.12593987]
[1749511854365,0.98073746,664.95,664.55,1.12593987]
[1749511854566,1.222,664.96,664.56,1.12593987]
[1749511855168,1.222,664.96,664.56,1.12603195]
[1749511858072,1.222,664.96,664.53,1.12603195]
[1749511858472,1.222,664.96,664.54,1.12603195]
[1749511858667,1.222,664.96,664.53,1.12603195]
[1749511859073,1.222,664.96,664.54,1.12603195]
[1749511861275,1.222,664.96,664.53,1.12603195]
[1749511861475,1.68171604,664.96,664.53,1.12603195]
[1749511861671,1.222,664.96,664.53,1.12603195]
[1749511863375,1.6824143,664.96,664.53,1.12603195]
[1749511863578,1.222,664.96,664.53,1.12603195]
[1749511864680,1.222,664.96,664.52,1.12603195]
[1749511866677,1.222,664.96,664.53,1.12603195]
[1749511867376,1.6825389,664.96,664.53,1.12603195]
[1749511867580,1.222,664.96,664.52,1.12603195]
[1749511867983,1.222,664.96,664.55,1.12603195]
[1749511868389,1.222,664.96,664.54,1.12603195]
[1749511868587,1.222,664.96,664.52,1.12603195]
[1749511868991,1.222,664.96,664.5,1.12603195]
[1749511869189,1.222,664.96,664.49,1.12603195]
[1749511870392,1.222,664.96,664.48,1.12603195]
[1749511871292,1.222,664.96,664.49,1.12603195]
[1749511871792,1.222,664.96,664.48,1.12603195]
[1749511871989,1.222,664.96,664.49,1.12603195]
[1749511872594,2.65876365,664.96,664.49,1.12603195]
[1749511872894,1.43676365,664.95,664.49,1.12603195]
[1749511873293,0.46012898,664.95,664.49,1.12603195]
[1749511873492,1.222,664.96,664.49,1.12603195]
[1749511873895,1.68213004,664.96,664.49,1.12603195]
[1749511874195,1.68213004,664.96,664.1,0.26178404]
[1749511874196,1.222,664.96,664.45,1.12603195]
[1749511874390,1.222,664.96,664.1,0.26178404]
[1749511874391,1.222,664.96,664.46,1.12603195]
[1749511874591,2.65957071,664.96,664.46,1.12603195]
[1749511874790,1.43757071,664.95,664.46,1.12603195]
[1749511874991,1.4375439,664.95,664.46,1.12603195]
[1749511875194,0.97741714,664.95,664.44,1.12603195]
[1749511875398,0.46036228,664.95,664.44,1.12603195]
[1749511875597,1.222,664.96,664.44,1.12603195]
[1749511877395,1.222,664.96,664.45,1.12603195]
[1749511877594,2.6600937,664.96,664.45,1.12603195]
[1749511877799,1.4380937,664.95,664.45,1.12603195]
[1749511878200,1.43808044,665.0,664.45,1.12603195]
[1749511878400,1.58352254,665.0,664.45,1.12603195]
[1749511878698,1.12297457,665.0,664.45,1.12603195]
[1749511879398,1.12297457,664.99,664.46,1.12603195]
[1749511879596,1.12297457,664.97,664.44,1.12603195]
[1749511880300,2.10075387,664.97,664.44,1.12603195]
[1749511880500,0.46078991,664.96,664.44,1.12603195]
[1749511880697,1.12297457,664.97,664.43,1.12603195]
[1749511880898,1.418,664.95,664.43,1.12603195]
[1749511881201,1.418,664.95,664.44,1.12603195]
[1749511881397,1.87873684,664.95,664.43,1.12603195]
[1749511881701,2.39517535,664.95,664.44,1.12603195]
[1749511881898,1.43787473,664.94,664.44,1.12603195]
[1749511882102,1.43794648,664.94,664.44,1.12603195]
[1749511882302,0.46069274,664.94,664.44,1.12603195]
[1749511882597,1.418,664.95,664.44,1.12603195]
[1749511883302,1.418,664.95,664.43,1.12603195]
[1749511883504,1.418,664.95,664.44,1.12603195]
[1749511883703,2.39532268,664.95,664.44,1.12603195]
[1749511883899,0.46075516,664.94,664.45,1.12603195]
[1749511884102,2.85607684,664.95,664.45,1.12603195]
[1749511884304,0.46075516,664.94,664.45,1.12603195]
[1749511884501,0.46075516,664.94,664.1,0.26178404]
[1749511884502,1.12297457,664.93,664.48,1.12603195]
[1749511885304,1.418,664.95,664.1,0.26178404]
[1749511885305,2.5608271,664.94,664.47,1.12603195]
[1749511885499,1.12297457,664.94,664.47,1.12603195]
[1749511885702,2.56082931,664.94,664.47,1.12603195]
[1749511885999,2.56082931,664.93,664.46,1.12603195]
[1749511886202,1.43785474,664.92,664.47,1.12603195]
[1749511886405,0.46068326,664.93,664.46,1.12603195]
[1749511886806,0.46062837,664.93,664.46,1.12603195]
[1749511887006,0.46060163,664.93,664.46,1.12603195]
[1749511887203,0.460603,664.93,664.47,1.12603195]
[1749511887403,2.10017801,664.94,664.46,1.12603195]
[1749511887602,0.46059509,664.93,664.46,1.12603195]
[1749511888405,0.46060009,664.93,664.46,1.12603195]
[1749511888607,0.46060028,664.93,664.46,1.12603195]
[1749511888807,2.56070082,664.94,664.46,1.12603195]
[1749511889004,2.10016182,664.94,664.46,1.12603195]
[1749511889305,0.46053899,664.93,664.46,1.12603195]
[1749511889804,1.58351356,664.93,664.46,1.12603195]
[1749511890007,1.5834531,664.93,664.46,1.12603195]
[1749511890208,2.1001206,664.93,664.46,1.12603195]
[1749511890504,0.46048081,664.92,664.46,1.12603195]
[1749511890704,1.58345538,664.94,664.46,1.12603195]
[1749511890909,2.56060494,664.94,664.46,1.12603195]
[1749511891109,0.46048081,664.93,664.46,1.12603195]
[1749511891305,0.46048225,664.93,664.46,1.12603195]
[1749511891606,0.46046207,664.93,664.46,1.12603195]
[1749511892004,2.56067484,664.94,664.46,1.12603195]
[1749511892208,0.46046207,664.93,664.46,1.12603195]
[1749511892407,2.56067823,664.94,664.46,1.12603195]
[1749511892606,0.46046282,664.93,664.46,1.12603195]
[1749511892907,1.58342569,664.93,664.46,1.12603195]
[1749511893410,1.58342545,664.93,664.46,1.12603195]
[1749511893608,2.56055445,664.93,664.46,1.12603195]
[1749511893807,1.12297457,664.93,664.47,1.12603195]
[1749511894207,1.58342792,664.93,664.47,1.12603195]
[1749511894613,1.12297457,664.92,664.47,1.12603195]
[1749511895111,1.12297457,664.91,664.48,1.12603195]
[1749511896113,1.58358662,664.91,664.48,1.12603195]
[1749511896309,1.12297457,664.91,664.48,1.12603195]
[1749511896615,1.12246381,664.91,664.48,1.1265582]
[1749511897209,1.58307556,664.91,664.48,1.1265582]
[1749511897409,1.12246381,664.91,664.48,1.1265582]
[1749511897810,1.12246381,664.92,664.48,1.1265582]
[1749511898909,2.09954109,664.92,664.48,1.1265582]
[1749511899113,2.56012015,664.91,664.48,1.1265582]
[1749511899410,1.43765634,664.9,664.47,1.1265582]
[1749511899613,2.56012015,664.91,664.47,1.1265582]
[1749511899914,0.46059761,664.9,664.47,1.1265582]
[1749511900114,1.12246381,664.91,664.47,1.1265582]
[1749511900315,1.12246381,664.92,664.48,1.1265582]
[1749511900810,2.56011015,664.92,664.48,1.1265582]
[1749511901014,1.43764634,664.91,664.49,1.1265582]
[1749511901212,1.43764634,664.92,664.49,1.1265582]
[1749511901412,0.4606059,664.92,664.49,1.1265582]
[1749511901716,1.12246381,664.93,664.49,1.1265582]
[1749511902112,1.58307409,664.93,664.49,1.1265582]
[1749511902416,1.12246381,664.93,664.49,1.1265582]
[1749511902616,1.58307313,664.93,664.49,1.1265582]
[1749511902816,1.58307175,664.93,664.49,1.1265582]
[1749511903116,0.97709084,664.93,664.38,1.50418822]
[1749511903412,1.12238538,664.93,664.49,1.12643539]
[1749511903916,1.58299941,664.93,664.49,1.12643539]
[1749511904212,0.46061403,664.93,664.48,1.12643539]
[1749511904811,0.46059418,664.93,664.48,1.12643539]
[1749511905015,0.46059419,664.93,664.48,1.12643539]
[1749511905315,0.46058582,664.93,664.47,1.12643539]
[1749511905515,1.58296095,664.93,664.46,1.12643539]
[1749511905716,1.58296123,664.93,664.46,1.12643539]
[1749511906414,1.5829578,664.93,664.46,1.12643539]
[1749511906616,1.58295904,664.93,664.46,1.12643539]
[1749511906813,1.12238538,664.93,664.46,1.12643539]
[1749511907114,1.12238538,664.92,664.46,1.12643539]
[1749511908116,1.58295905,664.93,664.47,1.12643539]
[1749511908313,1.12238538,664.93,664.47,1.12643539]
[1749511908517,2.09949411,664.93,664.47,1.12643539]
[1749511908716,1.43769809,664.92,664.47,1.12643539]
[1749511908917,2.56008347,664.92,664.46,1.12643539]
[1749511909213,1.43769809,664.91,664.46,1.12643539]
[1749511909616,0.46058936,664.91,664.46,1.12643539]
[1749511909817,1.12238538,664.92,664.46,1.12643539]
[1749511910113,2.55993257,664.92,664.46,1.12643539]
[1749511910313,0.46048585,664.91,664.45,1.12643539]
[1749511910616,1.12238538,664.92,664.44,1.12643539]
[1749511911318,1.12238538,664.92,664.43,1.12643539]
[1749511912315,1.58287101,664.92,664.43,1.12643539]
[1749511912513,1.12238538,664.91,664.43,1.12643539]
[1749511913517,1.12238538,664.92,664.43,1.12643539]
[1749511914021,1.12238538,664.92,664.44,1.12643539]
[1749511914220,1.12238538,664.91,664.44,1.12643539]
[1749511914422,1.12238538,664.91,664.43,1.12643539]
[1749511914621,1.12238538,664.9,664.44,1.12643539]
[1749511915222,1.12238538,664.9,664.1,0.26178404]
[1749511915223,1.12238538,664.88,664.42,1.12643539]
[1749511916120,1.12238538,664.88,664.41,1.12643539]
[1749511917324,1.12238538,664.87,664.38,1.12643539]
[1749511917524,1.12238538,664.83,664.35,1.12643539]
[1749511917725,1.12238538,664.88,664.22,1.12643539]
[1749511918226,1.12238538,664.89,664.21,1.12643539]
[1749511918721,1.12238538,664.88,664.21,1.12643539]
[1749511919324,1.43568143,664.88,664.2,1.12643539]
[1749511919822,0.46020293,664.88,664.2,1.12643539]
[1749511920024,1.12238538,664.89,664.2,1.12643539]
[1749511922326,1.12238538,664.9,664.19,1.12643539]
[1749511923826,1.12238538,664.88,664.17,1.12643539]
[1749511924029,1.12238538,664.86,664.15,1.12643539]
[1749511924225,1.12238538,664.85,664.15,1.12643539]
[1749511924529,1.12238538,664.83,664.1,1.12643539]
[1749511924725,1.12238538,664.83,664.11,1.12643539]
[1749511925525,1.12238538,664.83,664.09,1.12643539]
[1749511925828,1.58233731,664.83,664.09,1.12643539]
[1749511926025,1.12238538,664.83,664.09,1.12643539]
[1749511926430,1.12238538,664.84,664.09,1.12643539]
[1749511927026,1.12238538,664.85,664.09,1.12643539]
[1749511927626,1.12238538,664.8,664.14,1.12643539]
[1749511928334,1.12238538,664.81,664.12,1.12643539]
[1749511929134,1.12238538,664.82,664.12,1.12643539]
[1749511930032,1.12238538,664.81,664.14,1.12643539]